Workbook

Sheet App2-BA_Fix Asset Cont 2013
K1: Cambridge and North Dumfries Hydro Inc.
L2: File Number: | M2: =EBNUMBER -> EB-2013-0116
L3: Exhibit: | M3: 2
L4: Appendix: | M4: Appendix 2-5
L5: Page: | M5: 1 of 1
L7: Filed: | M7: October 1,2013
A9: Appendix 2-BA
A10: Fixed Asset Continuity Schedule - CGAAP/ASPE/USGAAP
E12: Year | F12: 2013
D14: Cost | J14: Accumulated Depreciation
A15: CCA Class | B15: OEB | C15: Description | D15: Opening Balance | E15: Additions | F15: Disposals | G15: Closing Balance | I15: Opening Balance | J15: Additions | K15: Disposals | L15: Closing Balance | M15: Net Book Value
A16: 12 | B16: 1611 | C16: Computer Software (Formally known as Account 1925) | D16: 3217340 | E16: 312900 | G16: =D16+E16+F16 -> 3530240 | I16: -1487191 | J16: -512400 | L16: =I16+J16+K16 -> -1999591 | M16: =G16+L16 -> 1530649
A17: CEC | B17: 1612 | C17: Land Rights (Formally known as Account 1906) | G17: =D17+E17+F17 -> 0 | L17: =I17+J17+K17 -> 0 | M17: =G17+L17 -> 0
A18: N/A | B18: 1805 | C18: Land | D18: 252923 | G18: =D18+E18+F18 -> 252923 | L18: =I18+J18+K18 -> 0 | M18: =G18+L18 -> 252923
A19: 47 | B19: 1808 | C19: Buildings | D19: 1190197 | G19: =D19+E19+F19 -> 1190197 | I19: -263422 | J19: -21351 | L19: =I19+J19+K19 -> -284773 | M19: =G19+L19 -> 905424
A20: 13 | B20: 1810 | C20: Leasehold Improvements | G20: 0 | L20: 0 | M20: 0
A21: 47 | B21: 1815 | C21: Transformer Station Equipment >50 kV | D21: 10014580 | E21: 3600 | G21: 10018180 | I21: -2751157 | J21: -365399 | L21: -3116556 | M21: 6901624
A22: 47 | B22: 1820 | C22: Distribution Station Equipment <50 kV | G22: 0 | L22: 0 | M22: 0
A23: 47 | B23: 1825 | C23: Storage Battery Equipment | G23: 0 | L23: 0 | M23: 0
A24: 47 | B24: 1830 | C24: Poles, Towers & Fixtures | D24: 28069614 | E24: 4436401 | G24: 32506015 | I24: -14331401 | J24: -404621 | L24: -14736022 | M24: 17769993
A25: 47 | B25: 1835 | C25: Overhead Conductors & Devices | D25: 32947681 | E25: 5166199 | G25: 38113880 | I25: -16769814 | J25: -550383 | L25: -17320197 | M25: 20793683
A26: 47 | B26: 1840 | C26: Underground Conduit | D26: 25759534 | E26: 1869990 | G26: 27629524 | I26: -13135418 | J26: -188599 | L26: -13324017 | M26: 14305507
A27: 47 | B27: 1845 | C27: Underground Conductors & Devices | D27: 36903677 | E27: 2636010 | G27: 39539687 | I27: -18712380 | J27: -470342 | L27: -19182722 | M27: 20356965
A28: 47 | B28: 1850 | C28: Line Transformers | D28: 44014931 | E28: 2147400 | G28: 46162331 | I28: -22319753 | J28: -602986 | L28: -22922739 | M28: 23239592
A29: 47 | B29: 1855 | C29: Services (Overhead & Underground) | G29: 0 | L29: 0 | M29: 0
A30: 47 | B30: 1860 | C30: Meters | D30: 9515126 | E30: 915017 | G30: 10430143 | I30: -1771335 | J30: -667073 | L30: -2438408 | M30: 7991735
A31: 47 | B31: 1860 | C31: Meters (Smart Meters) | G31: 0 | L31: 0 | M31: 0
A32: N/A | B32: 1905 | C32: Land | D32: 213797 | G32: 213797 | L32: 0 | M32: 213797
A33: 47 | B33: 1908 | C33: Buildings & Fixtures | D33: 5187347 | E33: 448000 | G33: 5635347 | I33: -3539507 | J33: -142804 | L33: -3682311 | M33: 1953036
A34: 13 | B34: 1910 | C34: Leasehold Improvements | G34: 0 | L34: 0 | M34: 0
A35: 8 | B35: 1915 | C35: Office Furniture & Equipment (10 years) | D35: 611379 | E35: 187301 | G35: 798680 | I35: -502061 | J35: -27011 | L35: -529072 | M35: 269608
A36: 8 | B36: 1915 | C36: Office Furniture & Equipment (5 years) | G36: 0 | L36: 0 | M36: 0
A37: 10 | B37: 1920 | C37: Computer Equipment - Hardware | D37: 2384452 | E37: 296500 | G37: 2680952 | I37: -1643593 | J37: -339547 | L37: -1983140 | M37: 697812
A38: 45 | B38: 1920 | C38: Computer Equip.-Hardware(Post Mar. 22/04) | G38: 0 | L38: 0 | M38: 0
A39: 45.1 | B39: 1920 | C39: Computer Equip.-Hardware(Post Mar. 19/07) | G39: 0 | L39: 0 | M39: 0
A40: 10 | B40: 1930 | C40: Transportation Equipment | D40: 3867279 | E40: 587785 | G40: 4455064 | I40: -2616271 | J40: -182646 | L40: -2798917 | M40: 1656147
A41: 8 | B41: 1935 | C41: Stores Equipment | D41: 93729 | G41: 93729 | I41: -93729 | L41: -93729 | M41: 0
A42: 8 | B42: 1940 | C42: Tools, Shop & Garage Equipment | D42: 1083419 | E42: 116650 | G42: 1200069 | I42: -662214 | J42: -74628 | L42: -736842 | M42: 463227
A43: 8 | B43: 1945 | C43: Measurement & Testing Equipment | G43: 0 | L43: 0 | M43: 0
A44: 8 | B44: 1950 | C44: Power Operated Equipment | G44: 0 | L44: 0 | M44: 0
A45: 8 | B45: 1955 | C45: Communications Equipment | G45: 0 | L45: 0 | M45: 0
A46: 8 | B46: 1955 | C46: Communication Equipment (Smart Meters) | G46: 0 | L46: 0 | M46: 0
A47: 8 | B47: 1960 | C47: Miscellaneous Equipment | G47: 0 | L47: 0 | M47: 0
A48: 47 | B48: 1970 | C48: Load Management Controls Customer Premises | G48: 0 | L48: 0 | M48: 0
A49: 47 | B49: 1975 | C49: Load Management Controls Utility Premises | G49: 0 | L49: 0 | M49: 0
A50: 47 | B50: 1980 | C50: System Supervisor Equipment | D50: 714214 | G50: 714214 | I50: -714214 | L50: -714214 | M50: 0
A51: 47 | B51: 1985 | C51: Miscellaneous Fixed Assets | G51: 0 | L51: 0 | M51: 0
A52: 47 | B52: 1990 | C52: Other Tangible Property | G52: 0 | L52: 0 | M52: 0
A53: 47 | B53: 1995 | C53: Contributions & Grants | D53: -17259636 | E53: -3041000 | G53: -20300636 | I53: 4788445 | J53: 368521 | L53: 5156966 | M53: -15143670
B54: 2005 | C54: Property under Caoital Lease | D54: 61873 | G54: 61873 | I54: -61873 | L54: =I54+J54+K54 -> -61873 | M54: =G54+L54 -> 0
A55: WIP | C55: Work in Process | D55: 3798902 | G55: 3798902 | L55: 0 | M55: 3798902
B56: 2070 | C56: Other Utility Plant - assets not in use | D56: 28694 | G56: 28694 | L56: 0 | M56: 28694
C57: Sub-Total | D57: =SUM(D16:D56) -> 192671052 | E57: =SUM(E16:E56) -> 16082753 | F57: 0 | G57: 208753805 | I57: =SUM(I16:I56) -> -96586888 | J57: =SUM(J16:J56) -> -4181269 | K57: 0 | L57: -100768157 | M57: 107985648
C58: Less Socialized Renewable Energy Generation Investments (input as negative) | G58: =D58+E58+F58 -> 0 | L58: =I58+J58+K58 -> 0 | M58: =G58+L58 -> 0
C59: Less Other Non Rate-Regulated Utility Assets (input as negative) | G59: 0 | L59: 0 | M59: 0
C60: Total PP&E | D60: =SUM(D57:D59) -> 192671052 | E60: =SUM(E57:E59) -> 16082753 | F60: 0 | G60: 208753805 | I60: =SUM(I57:I59) -> -96586888 | J60: -4181269 | K60: 0 | L60: -100768157 | M60: 107985648
I62: Less: Fully Allocated Depreciation
A63: 10 | C63: Transportation | I63: Transportation | K63: -182646
A64: 8 | C64: Stores Equipment | I64: Stores Equipment
I65: Net Depreciation | K65: =J60-K63-K64 -> -3998623
A67: Notes:
A69: 1 | B69: Tables in the format outlined above covering all fixed asset accounts should be submitted for the Test Year, Bridge Year and all relevant historical years. At a minimum , the applicant must provide data for the earlier of: 1) all historical years back to its last rebasing; or 2) at least three years of historical actuals, in addition to Bridge Year and Test Year forecasts.
A72: 2 | B72: The "CCA Class" for fixed assets should agree with the CCA Class used for tax purposes in Tax Returns. Fixed Assets sub-components may be used where the underlying asset components are classified under multiple CCA Classes for tax purposes. If an applicant uses any different classes from those shown in the table, an explanation should be provided. (also see note 3 below).
A75: 3 | B75: The table may need to be customized for a utility's asset categories or for any new asset accounts announced or authorized by the Board.
A77: 4 | B77: The additions column (F) must not include construction work in progress (CWIP).

Sheet App2-BA_Fix Asset Cont_2012
K1: Cambridge and North Dumfries Hydro Inc.
L2: File Number: | M2: =EBNUMBER -> EB-2013-0116
L3: Exhibit: | M3: 2
L4: Appendix: | M4: Appendix 2-4
L5: Page: | M5: 1 of 1
L7: Filed: | M7: October 1,2013
A9: Appendix 2-BA
A10: Fixed Asset Continuity Schedule - CGAAP/ASPE/USGAAP
E12: Year | F12: 2012
D14: Cost | J14: Accumulated Depreciation
A15: CCA Class | B15: OEB | C15: Description | D15: Opening Balance | E15: Additions | F15: Disposals | G15: Closing Balance | I15: Opening Balance | J15: Additions | K15: Disposals | L15: Closing Balance | M15: Net Book Value
A16: 12 | B16: 1611 | C16: Computer Software (Formally known as Account 1925) | D16: 2402039 | E16: 815301 | G16: =D16+E16+F16 -> 3217340 | I16: -1066561 | J16: -420631 | L16: =I16+J16+K16 -> -1487192 | M16: =G16+L16 -> 1730148
A17: CEC | B17: 1612 | C17: Land Rights (Formally known as Account 1906) | G17: =D17+E17+F17 -> 0 | L17: =I17+J17+K17 -> 0 | M17: =G17+L17 -> 0
A18: N/A | B18: 1805 | C18: Land | D18: 252923 | G18: =D18+E18+F18 -> 252923 | L18: =I18+J18+K18 -> 0 | M18: =G18+L18 -> 252923
A19: 47 | B19: 1808 | C19: Buildings | D19: 1190197 | G19: =D19+E19+F19 -> 1190197 | I19: -242013 | J19: -21409 | L19: =I19+J19+K19 -> -263422 | M19: =G19+L19 -> 926775
A20: 13 | B20: 1810 | C20: Leasehold Improvements | G20: 0 | L20: 0 | M20: 0
A21: 47 | B21: 1815 | C21: Transformer Station Equipment >50 kV | D21: 9777744 | E21: 236836 | G21: 10014580 | I21: -2386788 | J21: -364369 | L21: -2751157 | M21: 7263423
A22: 47 | B22: 1820 | C22: Distribution Station Equipment <50 kV | G22: 0 | L22: 0 | M22: 0
A23: 47 | B23: 1825 | C23: Storage Battery Equipment | G23: 0 | L23: 0 | M23: 0
A24: 47 | B24: 1830 | C24: Poles, Towers & Fixtures | D24: 27673333 | E24: 396281 | G24: 28069614 | I24: -13983491 | J24: -347909 | L24: -14331400 | M24: 13738214
A25: 47 | B25: 1835 | C25: Overhead Conductors & Devices | D25: 32247582 | E25: 700100 | G25: 32947682 | I25: -16294885 | J25: -474929 | L25: -16769814 | M25: 16177868
A26: 47 | B26: 1840 | C26: Underground Conduit | D26: 25645937 | E26: 113596 | G26: 25759533 | I26: -12959037 | J26: -176381 | L26: -13135418 | M26: 12624115
A27: 47 | B27: 1845 | C27: Underground Conductors & Devices | D27: 36168760 | E27: 734917 | G27: 36903677 | I27: -18276279 | J27: -436101 | L27: -18712380 | M27: 18191297
A28: 47 | B28: 1850 | C28: Line Transformers | D28: 43046097 | E28: 968835 | G28: 44014932 | I28: -21751436 | J28: -568317 | L28: -22319753 | M28: 21695179
A29: 47 | B29: 1855 | C29: Services (Overhead & Underground) | G29: 0 | L29: 0 | M29: 0
A30: 47 | B30: 1860 | C30: Meters | D30: 847732 | E30: 8687870 | F30: -20476 | G30: 9515126 | I30: -246945 | J30: -1533876 | K30: 9486 | L30: -1771335 | M30: =G30+L30 -> 7743791
A31: 47 | B31: 1860 | C31: Meters (Smart Meters) | G31: 0 | L31: 0 | M31: 0
A32: N/A | B32: 1905 | C32: Land | D32: 213797 | G32: 213797 | L32: 0 | M32: 213797
A33: 47 | B33: 1908 | C33: Buildings & Fixtures | D33: 4693847 | E33: 493500 | G33: 5187347 | I33: -2218253 | J33: -1321253 | L33: -3539506 | M33: 1647841
A34: 13 | B34: 1910 | C34: Leasehold Improvements | G34: 0 | L34: 0 | M34: 0
A35: 8 | B35: 1915 | C35: Office Furniture & Equipment (10 years) | D35: 565368 | E35: 46010 | G35: 611378 | I35: -485579 | J35: -16482 | L35: -502061 | M35: 109317
A36: 8 | B36: 1915 | C36: Office Furniture & Equipment (5 years) | G36: 0 | L36: 0 | M36: 0
A37: 10 | B37: 1920 | C37: Computer Equipment - Hardware | D37: 1950065 | E37: 473274 | F37: -38887 | G37: 2384452 | I37: -1452385 | J37: -229625 | K37: 38418 | L37: -1643592 | M37: 740860
A38: 45 | B38: 1920 | C38: Computer Equip.-Hardware(Post Mar. 22/04) | G38: 0 | L38: 0 | M38: 0
A39: 45.1 | B39: 1920 | C39: Computer Equip.-Hardware(Post Mar. 19/07) | G39: 0 | L39: 0 | M39: 0
A40: 10 | B40: 1930 | C40: Transportation Equipment | D40: 3844415 | E40: 123836 | F40: -100972 | G40: 3867279 | I40: -2576140 | J40: -141103 | K40: 100972 | L40: -2616271 | M40: 1251008
A41: 8 | B41: 1935 | C41: Stores Equipment | D41: 93729 | G41: 93729 | I41: -93729 | L41: -93729 | M41: 0
A42: 8 | B42: 1940 | C42: Tools, Shop & Garage Equipment | D42: 1023853 | E42: 59566 | G42: 1083419 | I42: -595436 | J42: -66778 | L42: -662214 | M42: 421205
A43: 8 | B43: 1945 | C43: Measurement & Testing Equipment | G43: 0 | L43: 0 | M43: 0
A44: 8 | B44: 1950 | C44: Power Operated Equipment | G44: 0 | L44: 0 | M44: 0
A45: 8 | B45: 1955 | C45: Communications Equipment | G45: 0 | L45: 0 | M45: 0
A46: 8 | B46: 1955 | C46: Communication Equipment (Smart Meters) | G46: 0 | L46: 0 | M46: 0
A47: 8 | B47: 1960 | C47: Miscellaneous Equipment | G47: 0 | L47: 0 | M47: 0
A48: 47 | B48: 1970 | C48: Load Management Controls Customer Premises | G48: 0 | L48: 0 | M48: 0
A49: 47 | B49: 1975 | C49: Load Management Controls Utility Premises | G49: 0 | L49: 0 | M49: 0
A50: 47 | B50: 1980 | C50: System Supervisor Equipment | D50: 714214 | G50: 714214 | I50: -714214 | L50: -714214 | M50: 0
A51: 47 | B51: 1985 | C51: Miscellaneous Fixed Assets | G51: 0 | L51: 0 | M51: 0
A52: 47 | B52: 1990 | C52: Other Tangible Property | G52: 0 | L52: 0 | M52: 0
A53: 47 | B53: 1995 | C53: Contributions & Grants | D53: -16891915 | E53: -367721 | G53: -17259636 | I53: 4456583 | J53: 331862 | L53: 4788445 | M53: -12471191
B54: 2005 | C54: Property under Capital Lease | D54: 61873 | G54: 61873 | I54: -61873 | L54: =I54+J54+K54 -> -61873 | M54: =G54+L54 -> 0
A55: WIP | C55: Work in Process | D55: 197130 | E55: 3601772 | G55: 3798902 | L55: 0 | M55: 3798902
B56: 2070 | C56: Other Utility Plant - assets not in use | D56: 619296 | E56: -590602 | G56: 28694 | L56: 0 | M56: 28694
C57: Sub-Total | D57: =SUM(D16:D56) -> 176338016 | E57: =SUM(E16:E56) -> 16493371 | F57: -160335 | G57: 192671052 | I57: =SUM(I16:I56) -> -90948461 | J57: =SUM(J16:J56) -> -5787301 | K57: 148876 | L57: -96586886 | M57: 96084166
C58: Less Socialized Renewable Energy Generation Investments (input as negative) | G58: =D58+E58+F58 -> 0 | L58: =I58+J58+K58 -> 0 | M58: =G58+L58 -> 0
C59: Less Other Non Rate-Regulated Utility Assets (input as negative) | G59: 0 | L59: 0 | M59: 0
C60: Total PP&E | D60: =SUM(D57:D59) -> 176338016 | E60: =SUM(E57:E59) -> 16493371 | F60: -160335 | G60: 192671052 | I60: =SUM(I57:I59) -> -90948461 | J60: -5787301 | K60: 148876 | L60: -96586886 | M60: 96084166
I62: Less: Fully Allocated Depreciation
A63: 10 | C63: Transportation | I63: Transportation | K63: -141103
A64: 8 | C64: Stores Equipment | I64: Stores Equipment
I65: Smart Meters | K65: -873857
I66: Add: Chevy Volt | K66: 1714
I67: Net Depreciation | K67: =J60-K63-K64-K65-K66 -> -4774055
A69: Notes:
A71: 1 | B71: Tables in the format outlined above covering all fixed asset accounts should be submitted for the Test Year, Bridge Year and all relevant historical years. At a minimum , the applicant must provide data for the earlier of: 1) all historical years back to its last rebasing; or 2) at least three years of historical actuals, in addition to Bridge Year and Test Year forecasts.
A74: 2 | B74: The "CCA Class" for fixed assets should agree with the CCA Class used for tax purposes in Tax Returns. Fixed Assets sub-components may be used where the underlying asset components are classified under multiple CCA Classes for tax purposes. If an applicant uses any different classes from those shown in the table, an explanation should be provided. (also see note 3 below).
A77: 3 | B77: The table may need to be customized for a utility's asset categories or for any new asset accounts announced or authorized by the Board.
A79: 4 | B79: The additions column (F) must not include construction work in progress (CWIP).

Sheet App2-BA_Fix Asset Cont 2011
K1: Cambridge and North Dumfries Hydro Inc.
L2: File Number: | M2: =EBNUMBER -> EB-2013-0116
L3: Exhibit: | M3: 2
L4: Appendix: | M4: Appendix 2-3
L5: Page: | M5: 1 of 1
L7: Filed: | M7: October 1,2013
A9: Appendix 2-BA
A10: Fixed Asset Continuity Schedule - CGAAP/ASPE/USGAAP
E12: Year | F12: 2011
D14: Cost | J14: Accumulated Depreciation
A15: CCA Class | B15: OEB | C15: Description | D15: Opening Balance | E15: Additions | F15: Disposals | G15: Closing Balance | I15: Opening Balance | J15: Additions | K15: Disposals | L15: Closing Balance | M15: Net Book Value
A16: 12 | B16: 1611 | C16: Computer Software (Formally known as Account 1925) | D16: 947211 | E16: 1179438 | G16: =D16+E16+F16 -> 2126649 | I16: -686069 | J16: -297875 | L16: =I16+J16+K16 -> -983944 | M16: =G16+L16 -> 1142705
A17: CEC | B17: 1612 | C17: Land Rights (Formally known as Account 1906) | G17: =D17+E17+F17 -> 0 | L17: =I17+J17+K17 -> 0 | M17: =G17+L17 -> 0
A18: N/A | B18: 1805 | C18: Land | D18: 488261 | F18: -21541 | G18: =D18+E18+F18 -> 466720 | L18: =I18+J18+K18 -> 0 | M18: =G18+L18 -> 466720
A19: 47 | B19: 1808 | C19: Buildings | D19: 5880544 | E19: 3500 | G19: =D19+E19+F19 -> 5884044 | I19: -2325208 | J19: -135058 | L19: =I19+J19+K19 -> -2460266 | M19: =G19+L19 -> 3423778
A20: 13 | B20: 1810 | C20: Leasehold Improvements | G20: 0 | L20: 0 | M20: 0
A21: 47 | B21: 1815 | C21: Transformer Station Equipment >50 kV | D21: 9771354 | E21: 6389 | G21: 9777743 | I21: -2142424 | J21: -244364 | L21: -2386788 | M21: 7390955
A22: 47 | B22: 1820 | C22: Distribution Station Equipment <50 kV | G22: 0 | L22: 0 | M22: 0
A23: 47 | B23: 1825 | C23: Storage Battery Equipment | G23: 0 | L23: 0 | M23: 0
A24: 47 | B24: 1830 | C24: Poles, Towers & Fixtures | D24: 26142948 | E24: 1530385 | G24: 27673333 | I24: -13009371 | J24: -983534 | L24: -13992905 | M24: 13680428
A25: 47 | B25: 1835 | C25: Overhead Conductors & Devices | D25: 27004680 | E25: 1602784 | G25: 28607464 | I25: -13426554 | J25: -1016734 | L25: -14443288 | M25: 14164176
A26: 47 | B26: 1840 | C26: Underground Conduit | D26: 24714646 | E26: 931291 | G26: 25645937 | I26: -11973808 | J26: -911479 | L26: -12885287 | M26: 12760650
A27: 47 | B27: 1845 | C27: Underground Conductors & Devices | D27: 19630896 | E27: 755749 | G27: 20386645 | I27: -9486213 | J27: -724559 | L27: -10210772 | M27: 10175873
A28: 47 | B28: 1850 | C28: Line Transformers | D28: 41119695 | E28: 1926402 | G28: 43046097 | I28: -20339506 | J28: -1529895 | L28: -21869401 | M28: 21176696
A29: 47 | B29: 1855 | C29: Services (Overhead & Underground) | D29: 18657781 | E29: 764452 | G29: 19422233 | I29: -9173194 | J29: -690282 | L29: -9863476 | M29: 9558757
A30: 47 | B30: 1860 | C30: Meters | D30: 1044324 | E30: 285340 | G30: 1329664 | I30: -344050 | J30: -47475 | L30: -391525 | M30: 938139
A31: 47 | B31: 1860 | C31: Meters (Smart Meters) | G31: 0 | L31: 0 | M31: 0
A32: N/A | B32: 1905 | C32: Land | G32: 0 | L32: 0 | M32: 0
A33: 47 | B33: 1908 | C33: Buildings & Fixtures | G33: 0 | L33: 0 | M33: 0
A34: 13 | B34: 1910 | C34: Leasehold Improvements | G34: 0 | L34: 0 | M34: 0
A35: 8 | B35: 1915 | C35: Office Furniture & Equipment (10 years) | D35: 537887 | E35: 27482 | G35: 565369 | I35: -469850 | J35: -15729 | L35: -485579 | M35: 79790
A36: 8 | B36: 1915 | C36: Office Furniture & Equipment (5 years) | G36: 0 | L36: 0 | M36: 0
A37: 10 | B37: 1920 | C37: Computer Equipment - Hardware | D37: 1559937 | E37: 207412 | F37: -23826 | G37: 1743523 | I37: -1287958 | J37: -125999 | K37: 23534 | L37: -1390423 | M37: 353100
A38: 45 | B38: 1920 | C38: Computer Equip.-Hardware(Post Mar. 22/04) | G38: 0 | L38: 0 | M38: 0
A39: 45.1 | B39: 1920 | C39: Computer Equip.-Hardware(Post Mar. 19/07) | G39: 0 | L39: 0 | M39: 0
A40: 10 | B40: 1930 | C40: Transportation Equipment | D40: 3621019 | E40: 463600 | F40: -240204 | G40: 3844415 | I40: -2531504 | J40: -284840 | K40: 240204 | L40: -2576140 | M40: 1268275
A41: 8 | B41: 1935 | C41: Stores Equipment | D41: 93729 | G41: 93729 | I41: -93730 | L41: -93730 | M41: -1
A42: 8 | B42: 1940 | C42: Tools, Shop & Garage Equipment | D42: 1003667 | E42: 20186 | G42: 1023853 | I42: -521639 | J42: -73797 | L42: -595436 | M42: 428417
A43: 8 | B43: 1945 | C43: Measurement & Testing Equipment | G43: 0 | L43: 0 | M43: 0
A44: 8 | B44: 1950 | C44: Power Operated Equipment | G44: 0 | L44: 0 | M44: 0
A45: 8 | B45: 1955 | C45: Communications Equipment | G45: 0 | L45: 0 | M45: 0
A46: 8 | B46: 1955 | C46: Communication Equipment (Smart Meters) | G46: 0 | L46: 0 | M46: 0
A47: 8 | B47: 1960 | C47: Miscellaneous Equipment | G47: 0 | L47: 0 | M47: 0
A48: 47 | B48: 1970 | C48: Load Management Controls Customer Premises | G48: 0 | L48: 0 | M48: 0
A49: 47 | B49: 1975 | C49: Load Management Controls Utility Premises | G49: 0 | L49: 0 | M49: 0
A50: 47 | B50: 1980 | C50: System Supervisor Equipment | D50: 714214 | G50: 714214 | I50: -714214 | L50: -714214 | M50: 0
A51: 47 | B51: 1985 | C51: Miscellaneous Fixed Assets | G51: 0 | L51: 0 | M51: 0
A52: 47 | B52: 1990 | C52: Other Tangible Property | G52: 0 | L52: 0 | M52: 0
A53: 47 | B53: 1995 | C53: Contributions & Grants | D53: -15549083 | E53: -1342832 | G53: -16891915 | I53: 3807763 | J53: 648820 | L53: 4456583 | M53: -12435332
B54: 2005 | C54: Property under Capital Lease | D54: 61873 | G54: 61873 | I54: -61873 | L54: =I54+J54+K54 -> -61873 | M54: =G54+L54 -> 0
A55: WIP | C55: Work in Process | D55: 215252 | E55: 197130 | F55: -215252 | G55: 197130 | L55: 0 | M55: 197130
B56: 2070 | C56: Other Utility Plant - assets not in use | D56: 478492 | E56: 140804 | G56: 619296 | L56: 0 | M56: 619296
C57: Sub-Total | D57: =SUM(D16:D56) -> 168139327 | E57: =SUM(E16:E56) -> 8699512 | F57: -500823 | G57: 176338016 | I57: =SUM(I16:I56) -> -84779402 | J57: =SUM(J16:J56) -> -6432800 | K57: 263738 | L57: -90948464 | M57: 85389552
C58: Less Socialized Renewable Energy Generation Investments (input as negative) | G58: =D58+E58+F58 -> 0 | L58: =I58+J58+K58 -> 0 | M58: =G58+L58 -> 0
C59: Less Other Non Rate-Regulated Utility Assets (input as negative) | G59: 0 | L59: 0 | M59: 0
C60: Total PP&E | D60: =SUM(D57:D59) -> 168139327 | E60: =SUM(E57:E59) -> 8699512 | F60: -500823 | G60: 176338016 | I60: =SUM(I57:I59) -> -84779402 | J60: -6432800 | K60: 263738 | L60: -90948464 | M60: 85389552
I62: Less: Fully Allocated Depreciation
A63: 10 | C63: Transportation | I63: Transportation | K63: -284840
A64: 8 | C64: Stores Equipment | I64: Stores Equipment
I65: Net Depreciation | K65: =J60-K63-K64 -> -6147960
A67: Notes:
A69: 1 | B69: Tables in the format outlined above covering all fixed asset accounts should be submitted for the Test Year, Bridge Year and all relevant historical years. At a minimum , the applicant must provide data for the earlier of: 1) all historical years back to its last rebasing; or 2) at least three years of historical actuals, in addition to Bridge Year and Test Year forecasts.
A72: 2 | B72: The "CCA Class" for fixed assets should agree with the CCA Class used for tax purposes in Tax Returns. Fixed Assets sub-components may be used where the underlying asset components are classified under multiple CCA Classes for tax purposes. If an applicant uses any different classes from those shown in the table, an explanation should be provided. (also see note 3 below).
A75: 3 | B75: The table may need to be customized for a utility's asset categories or for any new asset accounts announced or authorized by the Board.
A77: 4 | B77: The additions column (F) must not include construction work in progress (CWIP).

Sheet App2-BA_Fix Asset Cont 2010
K1: Cambridge and North Dumfries Hydro Inc.
L2: File Number: | M2: =EBNUMBER -> EB-2013-0116
L3: Exhibit: | M3: 2
L4: Appendix: | M4: Appendix 2-2
L5: Page: | M5: 1 of 1
L7: Filed: | M7: October 1,2013
A9: Appendix 2-BA
A10: Fixed Asset Continuity Schedule - CGAAP/ASPE/USGAAP
E12: Year | F12: 2010
D14: Cost | J14: Accumulated Depreciation
A15: CCA Class | B15: OEB | C15: Description | D15: Opening Balance | E15: Additions | F15: Disposals | G15: Closing Balance | I15: Opening Balance | J15: Additions | K15: Disposals | L15: Closing Balance | M15: Net Book Value
A16: 12 | B16: 1611 | C16: Computer Software (Formally known as Account 1925) | D16: 1126689 | E16: 466068 | F16: -645547 | G16: =D16+E16+F16 -> 947210 | I16: -527158 | J16: -168328 | K16: 9417 | L16: =I16+J16+K16 -> -686069 | M16: =G16+L16 -> 261141
A17: CEC | B17: 1612 | C17: Land Rights (Formally known as Account 1906) | G17: =D17+E17+F17 -> 0 | L17: =I17+J17+K17 -> 0 | M17: =G17+L17 -> 0
A18: N/A | B18: 1805 | C18: Land | D18: 413171 | E18: 271964 | F18: -196873 | G18: =D18+E18+F18 -> 488262 | L18: =I18+J18+K18 -> 0 | M18: =G18+L18 -> 488262
A19: 47 | B19: 1808 | C19: Buildings | D19: 5826115 | E19: 54430 | G19: =D19+E19+F19 -> 5880545 | I19: -2189343 | J19: -135865 | L19: =I19+J19+K19 -> -2325208 | M19: =G19+L19 -> 3555337
A20: 13 | B20: 1810 | C20: Leasehold Improvements | G20: 0 | L20: 0 | M20: 0
A21: 47 | B21: 1815 | C21: Transformer Station Equipment >50 kV | D21: 9771354 | G21: 9771354 | I21: -1898009 | J21: -244415 | L21: -2142424 | M21: 7628930
A22: 47 | B22: 1820 | C22: Distribution Station Equipment <50 kV | G22: 0 | L22: 0 | M22: 0
A23: 47 | B23: 1825 | C23: Storage Battery Equipment | G23: 0 | L23: 0 | M23: 0
A24: 47 | B24: 1830 | C24: Poles, Towers & Fixtures | D24: 24661561 | E24: 1481387 | G24: 26142948 | I24: -11961062 | J24: -1048309 | L24: -13009371 | M24: 13133577
A25: 47 | B25: 1835 | C25: Overhead Conductors & Devices | D25: 25452406 | E25: 1552274 | G25: 27004680 | I25: -12342930 | J25: -1083624 | L25: -13426554 | M25: 13578126
A26: 47 | B26: 1840 | C26: Underground Conduit | D26: 22954441 | E26: 1760205 | G26: 24714646 | I26: -11133336 | J26: -840472 | L26: -11973808 | M26: 12740838
A27: 47 | B27: 1845 | C27: Underground Conductors & Devices | D27: 18238766 | E27: 1392130 | G27: 19630896 | I27: -8846112 | J27: -640101 | L27: -9486213 | M27: 10144683
A28: 47 | B28: 1850 | C28: Line Transformers | D28: 39005190 | E28: 2114505 | G28: 41119695 | I28: -19054171 | J28: -1285335 | L28: -20339506 | M28: 20780189
A29: 47 | B29: 1855 | C29: Services (Overhead & Underground) | D29: 17389410 | E29: 1268371 | G29: 18657781 | I29: -8433007 | J29: -740187 | L29: -9173194 | M29: 9484587
A30: 47 | B30: 1860 | C30: Meters | D30: 9240198 | E30: 90506 | F30: -8286380 | G30: 1044324 | I30: -4799759 | J30: -334652 | K30: 4790360 | L30: -344051 | M30: 700273
A31: 47 | B31: 1860 | C31: Meters (Smart Meters) | G31: 0 | L31: 0 | M31: 0
A32: N/A | B32: 1905 | C32: Land | G32: 0 | L32: 0 | M32: 0
A33: 47 | B33: 1908 | C33: Buildings & Fixtures | G33: 0 | L33: 0 | M33: 0
A34: 13 | B34: 1910 | C34: Leasehold Improvements | G34: 0 | L34: 0 | M34: 0
A35: 8 | B35: 1915 | C35: Office Furniture & Equipment (10 years) | D35: 629090 | E35: 24917 | F35: -116121 | G35: 537886 | I35: -569018 | J35: -16953 | K35: 116121 | L35: -469850 | M35: 68036
A36: 8 | B36: 1915 | C36: Office Furniture & Equipment (5 years) | G36: 0 | L36: 0 | M36: 0
A37: 10 | B37: 1920 | C37: Computer Equipment - Hardware | D37: 1513494 | E37: 228081 | F37: -181638 | G37: 1559937 | I37: -1257948 | J37: -127085 | K37: 97075 | L37: -1287958 | M37: 271979
A38: 45 | B38: 1920 | C38: Computer Equip.-Hardware(Post Mar. 22/04) | G38: 0 | L38: 0 | M38: 0
A39: 45.1 | B39: 1920 | C39: Computer Equip.-Hardware(Post Mar. 19/07) | G39: 0 | L39: 0 | M39: 0
A40: 10 | B40: 1930 | C40: Transportation Equipment | D40: 3607971 | E40: 99206 | F40: -86159 | G40: 3621018 | I40: -2372396 | J40: -245266 | K40: 86159 | L40: -2531503 | M40: 1089515
A41: 8 | B41: 1935 | C41: Stores Equipment | D41: 105013 | F41: -11284 | G41: 93729 | I41: -105013 | K41: 11284 | L41: -93729 | M41: 0
A42: 8 | B42: 1940 | C42: Tools, Shop & Garage Equipment | D42: 1434002 | E42: 201035 | F42: -631370 | G42: 1003667 | I42: -1079295 | J42: -66456 | K42: 624112 | L42: -521639 | M42: 482028
A43: 8 | B43: 1945 | C43: Measurement & Testing Equipment | G43: 0 | L43: 0 | M43: 0
A44: 8 | B44: 1950 | C44: Power Operated Equipment | G44: 0 | L44: 0 | M44: 0
A45: 8 | B45: 1955 | C45: Communications Equipment | G45: 0 | L45: 0 | M45: 0
A46: 8 | B46: 1955 | C46: Communication Equipment (Smart Meters) | G46: 0 | L46: 0 | M46: 0
A47: 8 | B47: 1960 | C47: Miscellaneous Equipment | G47: 0 | L47: 0 | M47: 0
A48: 47 | B48: 1970 | C48: Load Management Controls Customer Premises | G48: 0 | L48: 0 | M48: 0
A49: 47 | B49: 1975 | C49: Load Management Controls Utility Premises | G49: 0 | L49: 0 | M49: 0
A50: 47 | B50: 1980 | C50: System Supervisor Equipment | D50: 714214 | G50: 714214 | I50: -714214 | L50: -714214 | M50: 0
A51: 47 | B51: 1985 | C51: Miscellaneous Fixed Assets | G51: 0 | L51: 0 | M51: 0
A52: 47 | B52: 1990 | C52: Other Tangible Property | G52: 0 | L52: 0 | M52: 0
A53: 47 | B53: 1995 | C53: Contributions & Grants | D53: -13745395 | E53: -1803688 | G53: -15549083 | I53: 3221873 | J53: 585890 | L53: 3807763 | M53: -11741320
B54: 2005 | C54: Property under Capital Lease | D54: 61873 | G54: 61873 | I54: -61873 | L54: =I54+J54+K54 -> -61873 | M54: =G54+L54 -> 0
A55: WIP | C55: Work in Process | D55: 117944 | E55: 215252 | F55: -117944 | G55: 215252 | L55: 0 | M55: 215252
B56: 2070 | C56: Other Utility Plant - assets not in use | E56: 478492 | G56: 478492 | L56: 0 | M56: 478492
C57: Sub-Total | D57: =SUM(D16:D56) -> 168517507 | E57: =SUM(E16:E56) -> 9895135 | F57: -10273316 | G57: 168139326 | I57: =SUM(I16:I56) -> -84122771 | J57: =SUM(J16:J56) -> -6391158 | K57: 5734528 | L57: -84779401 | M57: 83359925
C58: Less Socialized Renewable Energy Generation Investments (input as negative) | G58: =D58+E58+F58 -> 0 | L58: =I58+J58+K58 -> 0 | M58: =G58+L58 -> 0
C59: Less Other Non Rate-Regulated Utility Assets (input as negative) | G59: 0 | L59: 0 | M59: 0
C60: Total PP&E | D60: =SUM(D57:D59) -> 168517507 | E60: =SUM(E57:E59) -> 9895135 | F60: -10273316 | G60: 168139326 | I60: =SUM(I57:I59) -> -84122771 | J60: -6391158 | K60: 5734528 | L60: -84779401 | M60: 83359925
I62: Less: Fully Allocated Depreciation
A63: 10 | C63: Transportation | I63: Transportation | K63: -245266
A64: 8 | C64: Stores Equipment | I64: Stores Equipment
I65: Net Depreciation | K65: =J60-K63-K64 -> -6145892
A67: Notes:
A69: 1 | B69: Tables in the format outlined above covering all fixed asset accounts should be submitted for the Test Year, Bridge Year and all relevant historical years. At a minimum , the applicant must provide data for the earlier of: 1) all historical years back to its last rebasing; or 2) at least three years of historical actuals, in addition to Bridge Year and Test Year forecasts.
A72: 2 | B72: The "CCA Class" for fixed assets should agree with the CCA Class used for tax purposes in Tax Returns. Fixed Assets sub-components may be used where the underlying asset components are classified under multiple CCA Classes for tax purposes. If an applicant uses any different classes from those shown in the table, an explanation should be provided. (also see note 3 below).
A75: 3 | B75: The table may need to be customized for a utility's asset categories or for any new asset accounts announced or authorized by the Board.
A77: 4 | B77: The additions column (F) must not include construction work in progress (CWIP).

Sheet App2-BA_Fix Asset Cont 2009
K1: Cambridge and North Dumfries Hydro Inc.
L2: File Number: | M2: =EBNUMBER -> EB-2013-0116
L3: Exhibit: | M3: 2
L4: Appendix: | M4: Appendix 2-1
L5: Page: | M5: 1 of 1
L7: Filed: | M7: October 1,2013
A9: Appendix 2-BA
A10: Fixed Asset Continuity Schedule - CGAAP/ASPE/USGAAP
E12: Year | F12: 2009
D14: Cost | J14: Accumulated Depreciation
A15: CCA Class | B15: OEB | C15: Description | D15: Opening Balance | E15: Additions | F15: Disposals | G15: Closing Balance | I15: Opening Balance | J15: Additions | K15: Disposals | L15: Closing Balance | M15: Net Book Value
A16: 12 | B16: 1611 | C16: Computer Software (Formally known as Account 1925) | D16: 1191464 | E16: -64776 | F16: 0 | G16: =D16+E16+F16 -> 1126688 | I16: -344550 | J16: -182608 | K16: 0 | L16: =I16+J16+K16 -> -527158 | M16: =G16+L16 -> 599530
A17: CEC | B17: 1612 | C17: Land Rights (Formally known as Account 1906) | G17: =D17+E17+F17 -> 0 | L17: =I17+J17+K17 -> 0 | M17: =G17+L17 -> 0
A18: N/A | B18: 1805 | C18: Land | D18: 413171 | E18: 33413 | F18: -33413 | G18: =D18+E18+F18 -> 413171 | L18: =I18+J18+K18 -> 0 | M18: =G18+L18 -> 413171
A19: 47 | B19: 1808 | C19: Buildings | D19: 5826116 | E19: 14802 | F19: -14804 | G19: =D19+E19+F19 -> 5826114 | I19: -2065442 | J19: -138705 | K19: 14804 | L19: =I19+J19+K19 -> -2189343 | M19: =G19+L19 -> 3636771
A20: 13 | B20: 1810 | C20: Leasehold Improvements | G20: 0 | L20: 0 | M20: 0
A21: 47 | B21: 1815 | C21: Transformer Station Equipment >50 kV | D21: 9771354 | G21: 9771354 | I21: -1653859 | J21: -244151 | L21: -1898010 | M21: 7873344
A22: 47 | B22: 1820 | C22: Distribution Station Equipment <50 kV | G22: 0 | L22: 0 | M22: 0
A23: 47 | B23: 1825 | C23: Storage Battery Equipment | G23: 0 | L23: 0 | M23: 0
A24: 47 | B24: 1830 | C24: Poles, Towers & Fixtures | D24: 23328484 | E24: 1333077 | G24: 24661561 | I24: -11041086 | J24: -919976 | L24: -11961062 | M24: 12700499
A25: 47 | B25: 1835 | C25: Overhead Conductors & Devices | D25: 24076580 | E25: 1375826 | G25: 25452406 | I25: -11379146 | J25: -963784 | L25: -12342930 | M25: 13109476
A26: 47 | B26: 1840 | C26: Underground Conduit | D26: 21273070 | E26: 1681371 | G26: 22954441 | I26: -10234857 | J26: -898479 | L26: -11133336 | M26: 11821105
A27: 47 | B27: 1845 | C27: Underground Conductors & Devices | D27: 16913970 | E27: 1324796 | G27: 18238766 | I27: -8133070 | J27: -713042 | L27: -8846112 | M27: 9392654
A28: 47 | B28: 1850 | C28: Line Transformers | D28: 36801204 | E28: 2203986 | G28: 39005190 | I28: -17696905 | J28: -1357266 | L28: -19054171 | M28: 19951019
A29: 47 | B29: 1855 | C29: Services (Overhead & Underground) | D29: 16165455 | E29: 1223955 | G29: 17389410 | I29: -7748672 | J29: -684335 | L29: -8433007 | M29: 8956403
A30: 47 | B30: 1860 | C30: Meters | D30: 8956401 | E30: 283797 | F30: 0 | G30: 9240198 | I30: -4523889 | J30: -275869 | K30: 0 | L30: -4799758 | M30: 4440440
A31: 47 | B31: 1860 | C31: Meters (Smart Meters) | G31: 0 | L31: 0 | M31: 0
A32: N/A | B32: 1905 | C32: Land | G32: 0 | L32: 0 | M32: 0
A33: 47 | B33: 1908 | C33: Buildings & Fixtures | G33: 0 | L33: 0 | M33: 0
A34: 13 | B34: 1910 | C34: Leasehold Improvements | G34: 0 | L34: 0 | M34: 0
A35: 8 | B35: 1915 | C35: Office Furniture & Equipment (10 years) | D35: 629090 | E35: 0 | F35: 0 | G35: 629090 | I35: -546111 | J35: -22907 | K35: 0 | L35: -569018 | M35: 60072
A36: 8 | B36: 1915 | C36: Office Furniture & Equipment (5 years) | G36: 0 | L36: 0 | M36: 0
A37: 10 | B37: 1920 | C37: Computer Equipment - Hardware | D37: 1488617 | E37: 66623 | F37: -41746 | G37: 1513494 | I37: -1178040 | J37: -121654 | K37: 41746 | L37: -1257948 | M37: 255546
A38: 45 | B38: 1920 | C38: Computer Equip.-Hardware(Post Mar. 22/04) | G38: 0 | L38: 0 | M38: 0
A39: 45.1 | B39: 1920 | C39: Computer Equip.-Hardware(Post Mar. 19/07) | G39: 0 | L39: 0 | M39: 0
A40: 10 | B40: 1930 | C40: Transportation Equipment | D40: 3299888 | E40: 772467 | F40: -464383 | G40: 3607972 | I40: -2576159 | J40: -260620 | K40: 464383 | L40: -2372396 | M40: 1235576
A41: 8 | B41: 1935 | C41: Stores Equipment | D41: 105013 | F41: 0 | G41: 105013 | I41: -104957 | J41: -56 | K41: 0 | L41: -105013 | M41: 0
A42: 8 | B42: 1940 | C42: Tools, Shop & Garage Equipment | D42: 1283612 | E42: 150390 | F42: 0 | G42: 1434002 | I42: -1017096 | J42: -62199 | K42: 0 | L42: -1079295 | M42: 354707
A43: 8 | B43: 1945 | C43: Measurement & Testing Equipment | G43: 0 | L43: 0 | M43: 0
A44: 8 | B44: 1950 | C44: Power Operated Equipment | G44: 0 | L44: 0 | M44: 0
A45: 8 | B45: 1955 | C45: Communications Equipment | G45: 0 | L45: 0 | M45: 0
A46: 8 | B46: 1955 | C46: Communication Equipment (Smart Meters) | G46: 0 | L46: 0 | M46: 0
A47: 8 | B47: 1960 | C47: Miscellaneous Equipment | G47: 0 | L47: 0 | M47: 0
A48: 47 | B48: 1970 | C48: Load Management Controls Customer Premises | G48: 0 | L48: 0 | M48: 0
A49: 47 | B49: 1975 | C49: Load Management Controls Utility Premises | G49: 0 | L49: 0 | M49: 0
A50: 47 | B50: 1980 | C50: System Supervisor Equipment | D50: 714214 | G50: 714214 | I50: -714214 | L50: -714214 | M50: 0
A51: 47 | B51: 1985 | C51: Miscellaneous Fixed Assets | G51: 0 | L51: 0 | M51: 0
A52: 47 | B52: 1990 | C52: Other Tangible Property | G52: 0 | L52: 0 | M52: 0
A53: 47 | B53: 1995 | C53: Contributions & Grants | D53: -11419225 | E53: -2326171 | G53: -13745396 | I53: 2670470 | J53: 551403 | L53: 3221873 | M53: -10523523
B54: 2005 | C54: Property under Capital Lease | D54: 61873 | G54: 61873 | I54: -49499 | J54: -12374 | L54: -61873 | M54: 0
A55: WIP | C55: Work in Process | D55: 0 | E55: 0 | F55: 117944 | G55: 117944 | L55: 0 | M55: 117944
B56: 2070 | C56: Other Utility Plant - assets not in use | E56: 0 | G56: 0 | L56: 0 | M56: 0
C57: Sub-Total | D57: =SUM(D16:D56) -> 160880351 | E57: =SUM(E16:E56) -> 8073556 | F57: -436402 | G57: 168517505 | I57: =SUM(I16:I56) -> -78337082 | J57: =SUM(J16:J56) -> -6306622 | K57: 520933 | L57: -84122771 | M57: 84394734
C58: Less Socialized Renewable Energy Generation Investments (input as negative) | G58: =D58+E58+F58 -> 0 | L58: =I58+J58+K58 -> 0 | M58: =G58+L58 -> 0
C59: Less Other Non Rate-Regulated Utility Assets (input as negative) | G59: 0 | L59: 0 | M59: 0
C60: Total PP&E | D60: =SUM(D57:D59) -> 160880351 | E60: =SUM(E57:E59) -> 8073556 | F60: -436402 | G60: 168517505 | I60: =SUM(I57:I59) -> -78337082 | J60: -6306622 | K60: 520933 | L60: -84122771 | M60: 84394734
I62: Less: Fully Allocated Depreciation
A63: 10 | C63: Transportation | I63: Transportation | K63: -260620
A64: 8 | C64: Stores Equipment | I64: Stores Equipment
I65: Net Depreciation | K65: =J60-K63-K64 -> -6046002
A67: Notes:
A69: 1 | B69: Tables in the format outlined above covering all fixed asset accounts should be submitted for the Test Year, Bridge Year and all relevant historical years. At a minimum , the applicant must provide data for the earlier of: 1) all historical years back to its last rebasing; or 2) at least three years of historical actuals, in addition to Bridge Year and Test Year forecasts.
A72: 2 | B72: The "CCA Class" for fixed assets should agree with the CCA Class used for tax purposes in Tax Returns. Fixed Assets sub-components may be used where the underlying asset components are classified under multiple CCA Classes for tax purposes. If an applicant uses any different classes from those shown in the table, an explanation should be provided. (also see note 3 below).
A75: 3 | B75: The table may need to be customized for a utility's asset categories or for any new asset accounts announced or authorized by the Board.
A77: 4 | B77: The additions column (F) must not include construction work in progress (CWIP).

Sheet Sheet6

Sheet Sheet7
